bitfinex-derivatives/quotes_SOLF0:USTF0_20260311
["timestamp","ask_amount","ask_price","bid_price","bid_amount"]
[1773189854655,8.76022312,85.611,85.562,8.87554859]
[1773189855948,8.76022312,85.611,85.569,8.87554859]
[1773189856163,8.76022312,85.611,85.57,3.49032336]
[1773189856356,8.76022312,85.608,85.56,3.49032336]
[1773189858553,8.76022312,85.603,85.553,8.87554859]
[1773189858755,8.76022312,85.599,85.553,8.87554859]
[1773189861760,8.29367282,85.597,85.553,8.87554859]
[1773189863663,8.29367282,85.597,85.555,19.15390191]
[1773189863960,8.29367282,85.597,85.556,8.63590191]
[1773189864560,8.29367282,85.597,85.56,3.49032336]
[1773189865658,8.29367282,85.597,85.556,8.63590191]
[1773189866353,8.29367282,85.596,85.556,8.63590191]
[1773189868464,8.29367282,85.596,85.561,8.63590191]
[1773189868967,8.29367282,85.609,85.57,3.49032336]
[1773189869369,8.29367282,85.609,85.571,8.63590191]
[1773189869670,8.29367282,85.624,85.581,8.63590191]
[1773189870168,8.29367282,85.624,85.59,3.49032336]
[1773189870360,8.29367282,85.639,85.591,8.63590191]
[1773189870566,8.29367282,85.639,85.59,3.49032336]
[1773189871564,3.49032336,85.64,85.59,3.49032336]
[1773189871565,8.29367282,85.63,85.59,3.49032336]
[1773189874571,10.51,85.626,85.59,3.49032336]
[1773189874871,18.80367282,85.626,85.59,3.49032336]
[1773189878378,8.29367282,85.625,85.59,3.49032336]
[1773189880374,8.29367282,85.625,85.582,10.515]
[1773189880575,8.29367282,85.625,85.59,3.49032336]
[1773189881976,8.29367282,85.625,85.59,12.12622527]
[1773189882981,8.29367282,85.625,85.578,8.63590191]
[1773189883173,8.29367282,85.625,85.58,3.49032336]
[1773189883874,18.80467282,85.616,85.58,3.49032336]
[1773189884875,8.29367282,85.615,85.578,8.63590191]
[1773189885078,8.29367282,85.615,85.58,3.49032336]
[1773189892998,8.29367282,85.615,85.58,14.00532336]
[1773189893700,8.29367282,85.615,85.58,14.00598754]
[1773189894502,8.29367282,85.615,85.583,18.48645962]
[1773189894794,8.29367282,85.615,85.583,7.97145962]
[1773189900605,8.43907018,85.629,85.59,3.49098754]
[1773189900796,8.43907018,85.629,85.591,7.97145962]
[1773189901704,8.43907018,85.629,85.593,7.97145962]
[1773189901999,21.008,85.675,85.61,3.49098754]
[1773189902000,8.43907018,85.641,85.61,3.49098754]
[1773189903806,8.43907018,85.641,85.61,11.46244716]
[1773189904200,8.43907018,85.641,85.611,7.97145962]
[1773189904605,8.43907018,85.662,85.621,7.97145962]
[1773189904906,8.43907018,85.662,85.63,3.49098754]
[1773189905306,8.43907018,85.66,85.62,3.49098754]
[1773189905708,8.43907018,85.66,85.62,11.46244716]
[1773189907204,10.504,85.67,85.631,7.97145962]
[1773189907410,8.43907018,85.67,85.64,3.49098754]
[1773189910405,8.43907018,85.667,85.612,7.97145962]
[1773189910811,8.43907018,85.667,85.631,7.97145962]
[1773189911412,8.43907018,85.667,85.64,3.49098754]
[1773189913607,8.43907018,85.667,85.631,7.97145962]
[1773189916012,8.43907018,85.678,85.641,7.97145962]
[1773189920314,8.50255523,85.692,85.651,8.72842329]
[1773189923124,8.50255523,85.703,85.661,8.72842329]
[1773189923522,8.50255523,85.718,85.68,3.49098754]
[1773189923823,8.50255523,85.718,85.68,12.21941083]
[1773189924322,8.50255523,85.73,85.69,3.49098754]
[1773189924917,10.495,85.746,85.7,3.49098754]
[1773189925119,8.50255523,85.742,85.71,3.49098754]
[1773189928119,8.50255523,85.755,85.71,12.21941083]
[1773189928326,8.50255523,85.755,85.711,8.72842329]
[1773189928624,8.50255523,85.751,85.71,3.49098754]
[1773189929327,8.50255523,85.749,85.71,3.49098754]
[1773189930523,8.50255523,85.745,85.71,3.49098754]
[1773189930724,8.50255523,85.745,85.7,3.49098754]
[1773189931432,8.50255523,85.745,85.71,3.49098754]
[1773189931624,8.50255523,85.745,85.701,8.72842329]
[1773189932127,8.50255523,85.744,85.701,8.72842329]
[1773189933428,8.50255523,85.759,85.711,8.72842329]
[1773189935431,8.50255523,85.757,85.711,8.72842329]
[1773189938134,8.50255523,85.764,85.713,8.72842329]
[1773189938838,8.50255523,85.756,85.713,8.72842329]
[1773189939535,10.495,85.746,85.713,8.72842329]
[1773189940733,10.495,85.746,85.701,8.72842329]
[1773189940928,8.50255523,85.739,85.701,8.72842329]
[1773189941129,8.50255523,85.759,85.701,8.72842329]
[1773189941338,8.50255523,85.759,85.712,8.72842329]
[1773189941538,8.50255523,85.759,85.721,8.72842329]
[1773189942943,8.50255523,85.759,85.71,3.49098754]
[1773189943241,8.50255523,85.759,85.709,8.72842329]
[1773189943436,8.50255523,85.759,85.711,8.72842329]
[1773189944345,8.50255523,85.757,85.711,8.72842329]
[1773189946042,8.50255523,85.757,85.721,8.72842329]
[1773189950346,10.494,85.755,85.721,8.72842329]
[1773189951646,8.75897549,85.754,85.71,3.49098754]
[1773189951845,8.75897549,85.752,85.71,3.49098754]
[1773189952052,8.75897549,85.752,85.715,8.16655814]
[1773189952248,8.75897549,85.769,85.731,8.16655814]
[1773189953648,8.75897549,85.783,85.733,8.16655814]
[1773189953853,8.75897549,85.783,85.741,8.16655814]
[1773189955354,8.75897549,85.793,85.751,8.16655814]
[1773189956242,8.75897549,85.793,85.7,35.06]
[1773189956243,8.75897549,85.793,85.76,3.47703008]
[1773189956752,8.75897549,85.793,85.752,8.16655814]
[1773189958749,8.75897549,85.808,85.77,11.64358822]
[1773189958950,8.75897549,85.808,85.77,8.16655814]
[1773189959350,8.75897549,85.808,85.771,8.16655814]
[1773189959551,8.75897549,85.829,85.78,3.47703008]
[1773189960447,8.75897549,85.829,85.781,8.16655814]
[1773189961651,8.75897549,85.841,85.791,8.16655814]
[1773189961849,14.41516805,85.891,85.724,184.3]
[1773189961850,8.75897549,85.853,85.81,11.64358822]
[1773189962156,8.75897549,85.866,85.82,3.47703008]
[1773189962357,8.75897549,85.864,85.811,8.16655814]
[1773189963049,12.86447592,85.914,85.811,8.16655814]
[1773189963050,8.75897549,85.857,85.811,8.16655814]
[1773189963856,8.75897549,85.853,85.81,3.47703008]
[1773189964051,8.75897549,85.853,85.8,3.47703008]
[1773189964661,3.47703008,85.85,85.8,11.64358822]
[1773189964846,8.75897549,85.849,85.8,11.64358822]
[1773189965155,3.47703008,85.83,85.786,8.16655814]
[1773189965355,8.75897549,85.829,85.786,8.16655814]
[1773189966646,8.75897549,85.829,85.78,3.47703008]
[1773189966647,8.75897549,85.829,85.774,8.16655814]
[1773189966856,8.75897549,85.819,85.774,8.16655814]
[1773189968162,8.75897549,85.818,85.774,8.16655814]
[1773189968849,12.23600557,85.81,85.774,8.16655814]
[1773189969157,12.23600557,85.81,85.761,8.16655814]
[1773189969359,8.75897549,85.809,85.761,8.16655814]
[1773189970063,8.75897549,85.824,85.781,8.16655814]
[1773189970358,8.75897549,85.819,85.77,3.47703008]
[1773189970855,8.75897549,85.817,85.768,8.16655814]
[1773189971961,8.75897549,85.815,85.768,8.16655814]
[1773189972762,10.487,85.811,85.768,8.16655814]
[1773189973362,8.75897549,85.81,85.768,8.16655814]
[1773189973660,8.75897549,85.806,85.755,8.16655814]
[1773189973961,8.75897549,85.801,85.755,8.16655814]
[1773189974264,8.75897549,85.799,85.755,8.16655814]
[1773189974465,8.75897549,85.799,85.76,3.47703008]
[1773189974661,8.75897549,85.813,85.771,8.16655814]
[1773189976865,3.47703008,85.82,85.771,8.16655814]
[1773189979266,10.486,85.821,85.771,8.16655814]
[1773189979462,10.486,85.817,85.771,8.16655814]
[1773189979657,8.2663541,85.809,85.758,8.80859738]
[1773189980064,10.488,85.805,85.758,8.80859738]
[1773189980261,8.2663541,85.809,85.761,8.80859738]
[1773189980857,8.2663541,85.809,85.764,8.80859738]
[1773189981861,3.47703008,85.81,85.764,8.80859738]
[1773189982166,3.47703008,85.82,85.771,8.80859738]
[1773189982868,3.47703008,85.82,85.774,8.80859738]
[1773189983066,18.7523541,85.823,85.774,8.80859738]
[1773189983367,10.486,85.819,85.774,8.80859738]
[1773189983562,8.2663541,85.818,85.774,8.80859738]
[1773189984966,8.2663541,85.818,85.775,8.80859738]
[1773189985672,8.2663541,85.846,85.782,8.80859738]
[1773189985870,8.2663541,85.846,85.791,8.80859738]
[1773189987276,8.2663541,85.846,85.8,3.47703008]
[1773189987576,18.7493541,85.843,85.8,3.47703008]
[1773189988166,8.2663541,85.839,85.8,3.47703008]
[1773189989373,8.2663541,85.836,85.8,3.47703008]
[1773189993278,8.2663541,85.834,85.8,3.47703008]
[1773189994278,10.485,85.832,85.8,3.47703008]
[1773189994870,8.2663541,85.829,85.78,3.47703008]
[1773189996476,18.7523541,85.82,85.78,3.47703008]
[1773189996677,8.2663541,85.832,85.79,3.47703008]
[1773189996879,8.2663541,85.83,85.79,3.47703008]
[1773189997278,8.2663541,85.828,85.79,3.47703008]
[1773189998578,8.2663541,85.849,85.81,3.47703008]
[1773189998782,9.79088788,85.848,85.81,3.47703008]
[1773189998985,8.2663541,85.874,85.83,3.47703008]
[1773189999282,8.2663541,85.872,85.826,8.80859738]
[1773189999581,8.2663541,85.87,85.826,8.80859738]
[1773189999784,8.2663541,85.87,85.83,3.47703008]
[1773190000281,10.48,85.867,85.83,3.47703008]
[1773190000581,8.2663541,85.866,85.818,14.42126348]
[1773190000778,8.2663541,85.866,85.82,3.47703008]
[1773190001180,8.2663541,85.854,85.82,3.47703008]
[1773190001376,8.2663541,85.854,85.817,14.42126348]
[1773190001783,8.2663541,85.839,85.8,3.47703008]
[1773190003381,8.2663541,85.859,85.81,3.47703008]
[1773190003578,8.2663541,85.857,85.81,3.47703008]
[1773190003775,8.2663541,85.855,85.81,3.47703008]
[1773190003980,8.2663541,85.849,85.801,8.80859738]
[1773190005482,18.7493541,85.849,85.801,8.80859738]
[1773190005683,8.2663541,85.849,85.811,8.80859738]
[1773190006183,8.2663541,85.849,85.81,3.47703008]
[1773190009083,8.10712383,85.846,85.801,14.42126348]
[1773190010385,8.55857459,85.844,85.801,14.42126348]
[1773190011782,8.55857459,85.844,85.806,14.42126348]
[1773190012888,8.55857459,85.844,85.773,28.88820638]
[1773190012889,8.55857459,85.858,85.813,7.93486897]
[1773190013190,8.55857459,85.858,85.814,22.35613245]
[1773190013589,19.04057459,85.857,85.814,22.35613245]
[1773190013891,19.04057459,85.857,85.814,7.93486897]
[1773190014087,19.04057459,85.857,85.801,21.63189522]
[1773190014088,8.55857459,85.869,85.83,3.47703008]
[1773190014283,10.482,85.856,85.821,7.93486897]
[1773190014488,10.482,85.856,85.816,14.42126348]
[1773190014489,8.55857459,85.855,85.808,14.42126348]
[1773190014688,8.55857459,85.855,85.806,14.42126348]
[1773190015492,10.483,85.843,85.806,14.42126348]
[1773190016192,19.04257459,85.84,85.806,14.42126348]
[1773190017187,19.04257459,85.84,85.807,14.42126348]
[1773190017593,19.04257459,85.84,85.803,14.42126348]
[1773190018194,8.55857459,85.83,85.798,14.42126348]
[1773190018494,8.55857459,85.83,85.79,3.47300462]
[1773190018697,8.55857459,85.849,85.8,3.47300462]
[1773190020497,8.55857459,85.844,85.8,3.47300462]
[1773190021099,8.55857459,85.844,85.81,3.47300462]
[1773190021693,8.55857459,85.855,85.81,11.40787359]
[1773190021892,8.55857459,85.853,85.81,11.40787359]
[1773190022092,8.55857459,85.853,85.81,7.93486897]
[1773190022298,8.55857459,85.853,85.81,11.40787359]
[1773190023396,8.55857459,85.851,85.81,11.40787359]
[1773190023594,8.55857459,85.851,85.82,3.47300462]
[1773190024993,19.04057459,85.85,85.811,7.93486897]
[1773190025196,8.55857459,85.849,85.811,7.93486897]
[1773190027399,8.55857459,85.869,85.83,3.47300462]
[1773190027596,9.10105461,85.868,85.83,3.47300462]
[1773190027800,8.55857459,85.869,85.83,3.47300462]
[1773190028001,9.28973086,85.868,85.83,3.47300462]
[1773190028201,9.28973086,85.867,85.83,3.47300462]
[1773190028400,9.28973086,85.866,85.83,3.47300462]
[1773190028599,9.28973086,85.865,85.822,7.93486897]
[1773190028799,10.48,85.867,85.822,7.93486897]
[1773190028993,9.2900641,85.866,85.822,7.93486897]
[1773190029196,9.2900641,85.865,85.822,7.93486897]
[1773190029405,10.48,85.867,85.822,7.93486897]
[1773190029702,3.47300462,85.88,85.822,7.93486897]
[1773190029703,8.55857459,85.864,85.822,7.93486897]
[1773190031403,10.481,85.862,85.822,7.93486897]
[1773190031803,8.55857459,85.864,85.822,7.93486897]
[1773190032203,28.91739786,85.954,85.822,7.93486897]
[1773190032204,8.55857459,85.861,85.822,7.93486897]
[1773190033106,8.55857459,85.876,85.84,3.47300462]
[1773190033804,10.479,85.875,85.84,3.47300462]
[1773190034005,8.55857459,85.874,85.83,3.47300462]
[1773190034206,8.55857459,85.874,85.821,21.63189522]
[1773190034406,10.481,85.86,85.821,21.63189522]
[1773190034997,8.55857459,85.862,85.821,21.63189522]
[1773190035197,8.55857459,85.862,85.82,3.47300462]
[1773190036905,8.55857459,85.859,85.82,3.47300462]
[1773190037105,8.55857459,85.859,85.819,7.93486897]
[1773190037804,8.55857459,85.859,85.83,3.47300462]
[1773190038010,8.55857459,85.871,85.83,3.47300462]
[1773190038613,8.55857459,85.862,85.82,3.47300462]
[1773190039507,8.23468572,85.86,85.82,3.47300462]
[1773190041206,8.23468572,85.856,85.82,3.47300462]
[1773190041404,8.23468572,85.856,85.81,3.47300462]
[1773190042509,18.71768572,85.847,85.81,3.47300462]
[1773190043609,8.23468572,85.846,85.81,3.47300462]
[1773190045215,8.23468572,85.846,85.801,21.63189522]
[1773190045216,8.23468572,85.842,85.801,21.63189522]
[1773190045509,8.23468572,85.842,85.81,3.47300462]
[1773190045714,8.23468572,85.853,85.811,8.50013227]
[1773190046105,3.47300462,85.87,85.811,8.50013227]
[1773190046106,8.23468572,85.851,85.811,8.50013227]
[1773190049417,8.23468572,85.849,85.811,8.50013227]
[1773190052819,8.23468572,85.846,85.811,8.50013227]
[1773190053015,8.23468572,85.846,85.81,3.47300462]
[1773190054219,8.23468572,85.846,85.81,13.96000462]
[1773190054516,8.23468572,85.846,85.81,3.47300462]
[1773190057827,8.23468572,85.844,85.81,3.47300462]
[1773190058125,8.23468572,85.844,85.8,11.97313689]
[1773190058824,8.23468572,85.842,85.801,10.488]
[1773190059221,8.23468572,85.842,85.81,3.47300462]
[1773190062327,10.484,85.838,85.81,3.47300462]
[1773190062627,8.23468572,85.842,85.81,3.47300462]
[1773190064632,8.23468572,85.884,85.811,8.50013227]
[1773190064832,8.23468572,85.869,85.82,3.47300462]
[1773190065133,8.23468572,85.858,85.82,3.47300462]
[1773190065332,8.23468572,85.856,85.82,3.47300462]
[1773190065529,8.23468572,85.854,85.82,3.47300462]
[1773190065728,18.71668572,85.85,85.82,3.47300462]
[1773190065927,3.47300462,85.87,85.82,3.47300462]
[1773190065928,8.23468572,85.849,85.82,3.47300462]
[1773190067333,10.483,85.848,85.811,8.50013227]
[1773190067632,8.23468572,85.847,85.811,8.50013227]
[1773190068440,7.97282208,85.875,85.84,3.47300462]
[1773190068736,7.97282208,85.873,85.84,3.47300462]
[1773190068930,7.97282208,85.871,85.83,3.47300462]
[1773190069130,18.45282208,85.868,85.83,3.47300462]
[1773190069333,16.99434324,85.867,85.83,3.47300462]
[1773190069531,9.02152116,85.866,85.83,3.47300462]
[1773190069731,9.02152116,85.865,85.83,3.47300462]
[1773190069936,7.97282208,85.867,85.83,3.47300462]
[1773190070233,9.02105706,85.866,85.83,3.47300462]
[1773190070434,9.02105706,85.865,85.83,3.47300462]
[1773190070634,7.97282208,85.867,85.83,3.47300462]
[1773190070841,9.02087153,85.866,85.83,3.47300462]
[1773190071033,9.02087153,85.865,85.83,3.47300462]
[1773190071333,7.97282208,85.867,85.83,3.47300462]
[1773190071734,9.02016065,85.866,85.83,3.47300462]
[1773190071937,9.02016065,85.865,85.83,3.47300462]
[1773190072241,9.02016065,85.864,85.83,3.47300462]
[1773190072434,9.02016065,85.863,85.83,3.47300462]
[1773190072629,7.97282208,85.867,85.83,3.47300462]
[1773190072832,8.59125476,85.864,85.82,3.47300462]
[1773190073033,8.59125476,85.862,85.815,18.98299946]
[1773190073231,8.59125476,85.86,85.815,18.98299946]
[1773190073436,8.59125476,85.858,85.815,18.98299946]
[1773190073632,8.59125476,85.856,85.82,3.47300462]
[1773190073834,8.59125476,85.854,85.82,3.47300462]
[1773190074040,8.59125476,85.852,85.82,3.47300462]
[1773190074235,9.01979337,85.851,85.82,3.47300462]
[1773190074437,8.59125476,85.852,85.82,3.47300462]
[1773190074841,17.61319936,85.851,85.82,3.47300462]
[1773190075142,8.59125476,85.849,85.81,3.47300462]
[1773190076345,8.59125476,85.849,85.81,11.96900408]
[1773190077043,8.59125476,85.849,85.8,3.47300462]
[1773190077044,9.02236719,85.848,85.8,3.47300462]
[1773190077245,8.59125476,85.846,85.8,3.47300462]
[1773190077441,8.59125476,85.844,85.8,3.47300462]
[1773190077740,3.47300462,85.85,85.8,3.47300462]
[1773190077741,8.59125476,85.842,85.8,3.47328937]
[1773190078440,8.59125476,85.838,85.8,3.47328937]
[1773190085347,8.59125476,85.829,85.774,8.49599946]
[1773190085641,8.59125476,85.827,85.78,11.96928883]
[1773190085845,8.59125476,85.827,85.781,8.49599946]
[1773190087049,8.59125476,85.827,85.79,3.47328937]
[1773190087350,10.485,85.826,85.79,3.47328937]
[1773190087551,10.485,85.826,85.782,10.491]
[1773190087747,19.07625476,85.826,85.783,8.49599946]
[1773190087948,8.59125476,85.825,85.783,8.49599946]
[1773190091645,8.59125476,85.821,85.783,8.49599946]
[1773190100952,7.54063393,85.809,85.78,3.47328937]
[1773190101157,7.54063393,85.809,85.771,8.1016404]
[1773190101861,7.54063393,85.809,85.773,8.1016404]
[1773190102253,7.54063393,85.809,85.78,3.47328937]
[1773190103053,7.54063393,85.809,85.773,8.1016404]
[1773190103461,7.54063393,85.809,85.777,10.491]
[1773190103959,7.54063393,85.809,85.778,8.1016404]
[1773190104656,7.54063393,85.809,85.722,28.9526903]
[1773190104657,7.54063393,85.822,85.791,8.1016404]
[1773190104855,7.54063393,85.839,85.791,8.1016404]
[1773190105162,7.54063393,85.837,85.8,3.47328937]
[1773190106455,7.54063393,85.837,85.794,18.5906404]
[1773190106754,7.54063393,85.837,85.795,8.1016404]
[1773190107162,7.54063393,85.835,85.795,8.1016404]
[1773190107768,7.54063393,85.833,85.795,8.1016404]
[1773190110564,7.54063393,85.831,85.795,8.1016404]
[1773190112470,7.54063393,85.828,85.783,8.1016404]
[1773190112671,7.54063393,85.826,85.783,8.1016404]
[1773190113473,7.54063393,85.825,85.783,8.1016404]
[1773190113774,7.54063393,85.823,85.783,8.1016404]
[1773190114277,7.54063393,85.822,85.783,8.1016404]
[1773190114472,18.02663393,85.822,85.783,8.1016404]
[1773190116275,16.67329747,85.821,85.783,8.1016404]
[1773190116473,7.54063393,85.821,85.783,8.1016404]
[1773190117273,9.13618607,85.82,85.783,8.1016404]
[1773190117464,7.54063393,85.821,85.783,8.1016404]
[1773190117664,9.13618607,85.82,85.783,8.1016404]
[1773190117876,7.54063393,85.821,85.783,8.1016404]
[1773190118374,9.13761288,85.82,85.783,8.1016404]
[1773190118573,7.54063393,85.821,85.783,8.1016404]
[1773190118768,7.54063393,85.819,85.783,8.1016404]
[1773190118975,7.54063393,85.817,85.772,8.1016404]
[1773190119180,7.54063393,85.815,85.772,8.1016404]
[1773190119371,7.54063393,85.813,85.772,8.1016404]
[1773190119567,7.54063393,85.813,85.773,10.492]
[1773190119876,7.54063393,85.813,85.773,18.5936404]
[1773190120072,7.54063393,85.813,85.774,8.1016404]
[1773190120769,7.54063393,85.811,85.774,8.1016404]
[1773190125878,7.54063393,85.811,85.764,10.493]
[1773190126080,7.54063393,85.811,85.765,8.1016404]
[1773190126274,7.54063393,85.811,85.77,3.47328937]
[1773190126681,7.54063393,85.811,85.765,8.1016404]
[1773190127285,7.54063393,85.811,85.77,3.47328937]
[1773190127587,7.54063393,85.807,85.77,3.47328937]
[1773190127783,7.54063393,85.807,85.765,8.1016404]
[1773190129487,6.97983888,85.804,85.765,8.1016404]
[1773190135689,6.97983888,85.802,85.76,3.47328937]
[1773190135898,6.97983888,85.802,85.756,10.494]
[1773190136194,10.49,85.791,85.756,6.52498797]
[1773190136395,6.97983888,85.792,85.756,6.52498797]
[1773190137899,6.97983888,85.807,85.761,6.52498797]
[1773190139506,6.97983888,85.805,85.761,6.52498797]
[1773190140002,6.97983888,85.801,85.761,6.52498797]
[1773190140599,6.97983888,85.799,85.761,6.52498797]
[1773190140801,6.97983888,85.799,85.75,6.52498797]
[1773190141201,6.97983888,85.787,85.74,3.47635805]
[1773190141400,6.97983888,85.787,85.74,10.00134602]
[1773190141704,6.97983888,85.787,85.741,6.52498797]
[1773190141905,17.47083888,85.783,85.741,6.52498797]
[1773190142601,10.491,85.783,85.741,6.52498797]
[1773190142803,6.97983888,85.768,85.73,10.00134602]
[1773190143012,6.97983888,85.768,85.73,6.52498797]
[1773190143306,6.97983888,85.764,85.721,6.52498797]
[1773190147611,6.97983888,85.76,85.721,6.52498797]
[1773190148011,6.97983888,85.76,85.678,35.06]
[1773190148012,6.97983888,85.76,85.71,10.00134602]
[1773190148412,6.97983888,85.76,85.714,203.73485475]
[1773190149217,6.97983888,85.758,85.714,203.73485475]
[1773190149416,6.97983888,85.758,85.715,6.52498797]
[1773190154215,6.97983888,85.758,85.73,3.47635805]
[1773190154414,6.97983888,85.771,85.74,3.47635805]
[1773190154919,6.97983888,85.769,85.731,6.52498797]
[1773190155210,6.97983888,85.769,85.73,3.47635805]
[1773190155415,6.97983888,85.769,85.72,3.47635805]
[1773190156310,6.97983888,85.756,85.72,3.47635805]
[1773190157512,10.494,85.754,85.72,3.47635805]
[1773190158615,10.88515229,85.809,85.714,197.20986678]
[1773190158616,6.97983888,85.767,85.73,10.00134602]
[1773190159215,6.97983888,85.767,85.74,3.47635805]
[1773190159413,5.63341686,85.779,85.74,9.28501718]
[1773190160217,5.63341686,85.791,85.751,5.80865913]
[1773190161023,5.63341686,85.791,85.76,3.47635805]
[1773190161215,5.63341686,85.791,85.751,5.80865913]
[1773190161917,5.63341686,85.791,85.75,3.47635805]
[1773190161918,5.63341686,85.791,85.753,5.80865913]
[1773190162114,5.63341686,85.804,85.77,3.47635805]
[1773190162316,5.63341686,85.829,85.78,3.47635805]
[1773190162622,10.487,85.814,85.78,3.47635805]
[1773190163826,5.63341686,85.816,85.78,3.47635805]
[1773190165229,5.63341686,85.813,85.78,3.47635805]
[1773190169421,10.486,85.824,85.781,5.80865913]
[1773190169626,5.63341686,85.825,85.8,3.47635805]
[1773190169829,5.63341686,85.825,85.791,5.80865913]
[1773190170529,5.63341686,85.859,85.8,3.47635805]
[1773190170730,5.63341686,85.857,85.8,3.47635805]
[1773190170930,5.63341686,85.855,85.8,3.47635805]
[1773190171126,5.63341686,85.853,85.8,3.47635805]
[1773190171428,5.63341686,85.841,85.8,3.47635805]
[1773190172028,14.51550378,85.885,85.723,46.72]
[1773190172029,5.63341686,85.836,85.79,3.47635805]
[1773190172429,5.63341686,85.836,85.78,5.80865913]
[1773190172430,5.63341686,85.836,85.8,3.47635805]
[1773190173334,16.11841686,85.831,85.8,3.47635805]
[1773190173536,5.63341686,85.83,85.8,3.47635805]
[1773190181245,5.63341686,85.83,85.79,3.47635805]
[1773190181639,5.63341686,85.83,85.791,5.80865913]
[1773190183448,5.63341686,85.83,85.8,3.47635805]
[1773190184746,5.63341686,85.83,85.791,5.80865913]
[1773190192358,5.07805208,85.827,85.791,5.80865913]
[1773190192666,5.07805208,85.827,85.791,3.98845718]
[1773190194563,5.07805208,85.845,85.8,3.47635805]
[1773190194962,5.07805208,85.845,85.801,5.05413942]
[1773190196462,5.07805208,85.843,85.802,5.05413942]
[1773190197663,5.07805208,85.853,85.811,5.05413942]
[1773190198065,5.07805208,85.864,85.821,5.05413942]
[1773190200473,5.07805208,85.864,85.831,5.05413942]
[1773190200673,5.07805208,85.864,85.765,20.986]
[1773190200674,5.07805208,85.878,85.841,5.05413942]
[1773190200873,294.75017194,85.872,85.841,5.05413942]
[1773190201274,289.67211986,85.872,85.841,5.05413942]
[1773190201474,289.67211986,85.872,85.85,3.47635805]
[1773190201669,5.07805208,85.883,85.85,3.46951304]
[1773190203074,10.478,85.89,85.851,5.05413942]
[1773190203573,15.55605208,85.89,85.851,5.05413942]
[1773190203778,5.07805208,85.889,85.851,5.05413942]
[1773190204277,5.07805208,85.901,85.86,8.52365246]
[1773190205171,5.07805208,85.899,85.86,8.52365246]
[1773190205372,5.07805208,85.899,85.86,3.46951304]
[1773190208973,5.07805208,85.899,85.86,8.52365246]
[1773190209176,5.07805208,85.929,85.871,5.05413942]
[1773190209373,3.46951304,85.92,85.871,5.05413942]
[1773190209580,5.07805208,85.918,85.881,5.05413942]
[1773190209978,9.25145933,85.939,85.89,3.46951304]
[1773190210181,5.07805208,85.935,85.9,3.46951304]
[1773190210485,9.29485227,85.934,85.891,4.47274408]
[1773190210682,5.07805208,85.932,85.891,4.47274408]
[1773190212285,5.07805208,85.932,85.9,3.46951304]
[1773190213481,5.07805208,85.947,85.902,5.05413942]
[1773190213686,5.07805208,85.947,85.91,3.46951304]
[1773190213881,5.07805208,85.947,85.91,8.52365246]
[1773190214781,5.07805208,85.947,85.9,3.46951304]
[1773190215180,5.07805208,85.947,85.901,5.05413942]
[1773190217684,5.07805208,85.945,85.901,5.05413942]
[1773190220085,5.07805208,85.945,85.91,3.46951304]
[1773190220984,289.45214208,85.953,85.911,15.43636286]
[1773190221283,289.45214208,85.953,85.912,4.96136286]
[1773190221587,4.80053064,85.952,85.912,4.96136286]
[1773190221797,289.45214208,85.953,85.921,4.96136286]
[1773190222087,289.45214208,85.953,85.93,8.4308759]
[1773190222292,289.45214208,85.953,85.931,4.96136286]
[1773190222790,10.467,85.974,85.931,4.96136286]
[1773190223294,4.80053064,85.969,85.931,4.96136286]
[1773190226189,4.80053064,85.967,85.92,3.46951304]
[1773190226782,4.80053064,85.959,85.906,4.96136286]
[1773190226992,4.80053064,85.959,85.921,4.96136286]
[1773190227286,4.80053064,85.971,85.93,4.96136286]
[1773190227593,4.80053064,85.989,85.94,3.46951304]
[1773190227789,4.80053064,85.976,85.931,4.96136286]
[1773190229591,4.80053064,85.984,85.941,4.96136286]
[1773190230387,4.80053064,85.984,85.943,10.471]
[1773190230786,4.80053064,85.979,85.941,4.96136286]
[1773190231892,4.80053064,85.979,85.928,4.96136286]
[1773190232091,4.80053064,85.969,85.928,4.96136286]
[1773190232787,285.22472251,86.01,85.931,4.96136286]
[1773190232788,4.80053064,85.981,85.931,4.96136286]
[1773190233694,4.80053064,85.975,85.931,4.96136286]
[1773190234688,4.80053064,85.975,85.932,10.472]
[1773190234891,4.80053064,85.969,85.931,4.96136286]
[1773190235798,15.26853064,85.966,85.931,4.96136286]
[1773190235996,4.80053064,85.966,85.931,4.96136286]
[1773190238698,4.80053064,85.979,85.933,4.96136286]
[1773190240597,4.80053064,85.979,85.936,4.96136286]
[1773190242793,8.27004368,85.99,85.941,4.96136286]
[1773190242991,4.80053064,85.99,85.951,4.96136286]
[1773190245997,4.80053064,86.001,85.955,4.96136286]
[1773190246197,4.80053064,86.001,85.961,4.96136286]
[1773190246503,4.80053064,86.014,85.97,3.46951304]
[1773190246805,9.28302584,86.013,85.971,4.96136286]
[1773190247003,9.28302584,86.012,85.971,4.96136286]
[1773190247199,9.28302584,86.011,85.971,4.96136286]
[1773190247498,4.80053064,86.014,85.971,4.96136286]
[1773190247702,9.28495692,86.013,85.971,4.96136286]
[1773190248000,9.28495692,86.012,85.971,4.96136286]